bitfinex/quotes_ETHUSD_20250426
["timestamp","ask_amount","ask_price","bid_price","bid_amount"]
[1745676967167,20.83384948,1791.2,1791.1,0.05]
[1745676967375,15.251,1791.2,1791.1,0.05]
[1745676967945,20.83384948,1791.2,1791.1,0.05]
[1745676968350,24.83384948,1791.2,1791.1,0.05]
[1745676968677,19.251,1791.2,1791.1,0.05]
[1745676968980,19.93885889,1791.2,1791.1,0.05]
[1745676969535,25.52170837,1791.2,1791.1,0.05]
[1745676969737,42.70775337,1791.2,1791.1,0.05]
[1745676969974,0.7713,1790.7,1790.1,5.6361628]
[1745676970145,4.811,1790.6,1790.1,5.6361628]
[1745676970340,3.0,1790.5,1790.1,5.6361628]
[1745676970673,0.7713,1790.4,1790.1,5.6361628]
[1745676970878,3.7713,1790.5,1790.2,5.58595301]
[1745676971379,3.7713,1790.5,1790.1,5.63611975]
[1745676971670,3.7713,1790.5,1790.1,0.05]
[1745676971972,3.7713,1790.5,1790.2,5.58594562]
[1745676972381,3.7713,1790.5,1790.1,5.63610007]
[1745676972680,3.7713,1790.5,1790.2,5.58596067]
[1745676972845,3.7713,1790.5,1790.1,5.63611417]
[1745676973774,3.7713,1790.5,1790.2,5.58577706]
[1745676974490,3.7713,1790.5,1790.3,5.58556629]
[1745676974781,0.7713,1791.0,1790.4,0.8138]
[1745676974945,9.22614824,1791.2,1790.9,11.98112438]
[1745676975149,9.22614824,1791.2,1791.0,5.58323157]
[1745676975150,8.812,1791.2,1791.0,5.58323157]
[1745676975347,4.812,1791.2,1791.0,5.58326666]
[1745676975648,16.764,1791.5,1791.3,5.58234802]
[1745676975848,4.812,1791.6,1791.5,5.5818621]
[1745676976080,4.812,1791.6,1791.4,5.58197341]
[1745676976447,4.812,1791.6,1791.5,5.58191459]
[1745676976861,4.812,1791.6,1791.3,5.58223224]
[1745676977263,4.812,1791.6,1791.4,5.58220293]
[1745676977466,4.812,1791.6,1791.5,5.58191459]
[1745676977700,4.812,1791.6,1791.4,5.58204408]
[1745676978196,4.812,1791.6,1791.4,5.58197071]
[1745676978983,4.812,1791.6,1791.5,5.58191459]
[1745676980995,0.7713,1792.0,1791.7,5.58098596]
[1745676981156,4.81,1791.9,1791.8,5.58075257]
[1745676981491,17.6023,1792.2,1792.0,5.58015246]
[1745676981492,16.771,1792.2,1792.0,5.58015246]
[1745676981693,4.81,1792.1,1792.0,5.58015246]
[1745676982061,5.6413,1792.4,1792.1,5.57986234]
[1745676982385,3.0,1792.3,1792.0,6.355057]
[1745676982816,3.0,1792.3,1791.8,6.355593]
[1745676983114,3.0,1792.3,1791.8,0.7747]
[1745676983321,3.68785889,1792.3,1791.7,5.58111584]
[1745676983613,3.68785889,1792.3,1791.7,5.58103969]
[1745676983919,3.68785889,1792.3,1791.5,5.58172502]
[1745676983920,0.68785889,1792.1,1791.5,5.58172502]
[1745676984213,0.8059,1791.9,1791.4,6.36839363]
[1745676984722,1.49375889,1791.9,1791.4,6.36839363]
[1745676984902,1.49375889,1791.9,1791.2,0.7863]
[1745676985209,0.8059,1791.6,1791.1,5.58310425]
[1745676985416,3.0,1791.4,1791.1,5.58310425]
[1745676985906,3.0,1791.4,1791.1,5.58303654]
[1745676986514,3.0,1791.4,1791.0,5.58340729]
[1745676987019,3.0,1791.4,1791.0,11.16663214]
[1745676987315,3.0,1791.4,1791.0,5.58322754]
[1745676987896,3.0,1791.4,1791.0,11.16645866]
[1745676988121,3.0,1791.4,1791.1,5.58310106]
[1745676988420,3.0,1791.4,1791.2,5.58254582]
[1745676988603,0.8059,1791.6,1791.2,5.58254582]
[1745676988780,3.0,1791.4,1791.2,5.58254582]
[1745676989514,3.0,1791.4,1791.1,5.58298726]
[1745676990520,3.0,1791.4,1791.1,5.58290908]
[1745676990812,3.0,1791.4,1791.1,5.58297622]
[1745676992324,3.0,1791.4,1791.0,5.58338407]
[1745676993624,3.0,1791.4,1790.5,0.7798]
[1745676993625,0.7748,1791.3,1790.5,0.7798]
[1745676993791,0.7748,1791.3,1790.7,5.58428075]
[1745676993986,0.7748,1791.3,1790.5,0.7798]
[1745676994189,0.7748,1791.1,1790.4,5.58509371]
[1745676994417,3.0,1790.9,1790.4,5.58509371]
[1745676994787,3.0,1790.9,1790.4,5.58534405]
[1745676995029,3.0,1790.9,1790.6,5.58454095]
[1745676995489,3.0,1790.9,1790.5,5.58491796]
[1745676996344,3.0,1790.9,1790.5,11.16973735]
[1745676996624,3.0,1790.9,1790.5,5.58481939]
[1745676996930,3.0,1790.9,1790.5,11.16960911]
[1745676997135,3.0,1790.9,1790.5,5.58479717]
[1745676997324,3.0,1790.9,1790.4,5.5851477]
[1745676997515,0.7748,1790.8,1790.4,5.5851477]
[1745676997831,0.7748,1790.8,1790.5,5.58497624]
[1745676998342,0.7748,1790.8,1790.5,5.58475348]
[1745676999625,3.0,1790.9,1790.6,5.58449236]
[1745676999937,3.0,1790.9,1790.6,5.58448721]
[1745677000228,3.0,1790.9,1790.7,5.58440824]
[1745677001451,3.0,1790.9,1790.6,5.58456013]
[1745677002873,0.8045,1790.8,1790.4,5.58517122]
[1745677003358,0.8045,1790.8,1790.4,5.58509564]
[1745677003565,0.8045,1790.8,1790.4,11.17019887]
[1745677003763,0.8045,1790.8,1790.5,5.58484772]
[1745677004120,0.8045,1790.8,1790.6,5.58467486]
[1745677005131,3.0,1790.9,1790.6,5.58467486]
[1745677005736,3.0,1790.9,1790.6,5.58457389]
[1745677005982,0.7917,1790.8,1790.3,5.58561689]
[1745677006495,0.7917,1790.8,1790.1,5.63612319]
[1745677006845,0.7917,1790.8,1790.1,0.05]
[1745677007171,0.7917,1790.6,1790.1,0.05]
[1745677007369,3.7917,1790.4,1790.1,0.05]
[1745677008441,3.7917,1790.4,1790.1,5.63624015]
[1745677008904,3.7917,1790.4,1790.2,5.58594233]
[1745677009655,3.7917,1790.4,1790.1,5.63609549]
[1745677010575,3.0,1790.4,1790.2,5.58595442]
[1745677010941,3.0,1790.4,1790.1,6.44919549]
[1745677011142,3.0,1790.4,1790.1,6.44913059]
[1745677011457,0.7589,1790.3,1790.1,0.05]
[1745677011659,27.35617225,1790.2,1790.1,0.05]
[1745677011853,0.7589,1789.9,1789.2,0.8131]
[1745677012057,0.7589,1789.9,1789.3,5.58876888]
[1745677012058,3.0,1789.7,1789.3,5.58876888]
[1745677012576,3.0,1789.7,1789.3,5.58861474]
[1745677013487,3.0,1789.7,1789.2,6.4021759]
[1745677013694,3.0,1789.7,1789.3,5.58877197]
[1745677013996,3.0,1789.7,1789.3,5.58873944]
[1745677014784,3.0,1789.7,1789.2,0.8131]
[1745677014992,3.0,1789.7,1789.3,5.58875442]
[1745677015386,3.0,1789.7,1789.3,11.17711425]
[1745677015687,3.0,1789.7,1789.3,5.58853933]
[1745677015884,3.0,1789.7,1789.2,0.8131]
[1745677016086,3.0,1789.7,1789.2,7.04740861]
[1745677016290,4.811,1789.8,1789.6,5.58784085]
[1745677016455,4.811,1789.8,1789.5,5.58792339]
[1745677016893,4.811,1789.8,1789.4,5.58837697]
[1745677017088,4.811,1789.8,1789.5,5.58809275]
[1745677017795,4.811,1789.8,1789.6,5.58780256]
[1745677018797,4.811,1789.8,1789.4,5.58826939]
[1745677019015,3.0,1789.7,1789.4,5.58826939]
[1745677019172,3.0,1789.7,1789.5,5.58800314]
[1745677020518,3.0,1789.7,1789.4,11.17669496]
[1745677020814,3.0,1789.7,1789.5,5.58797816]
[1745677021179,3.0,1789.7,1789.5,5.58790377]
[1745677021397,4.811,1789.8,1789.6,5.58784085]
[1745677021598,4.811,1789.8,1789.7,5.58752863]
[1745677022868,0.8324,1789.7,1789.5,5.58810917]
[1745677023071,3.8324,1789.7,1789.5,5.58810917]
[1745677024192,3.8324,1789.7,1789.6,5.58784085]
[1745677024388,3.0,1789.7,1789.6,5.58784085]
[1745677024767,4.811,1789.8,1789.7,5.58752863]
[1745677026170,4.811,1789.8,1789.7,6.39312863]
[1745677027076,4.811,1789.8,1789.7,5.58752863]
[1745677029409,16.773,1790.2,1790.1,5.58628009]
[1745677029608,4.813,1790.1,1790.0,5.58646592]
[1745677031607,4.813,1790.1,1789.9,5.58673574]
[1745677031608,4.813,1790.1,1789.9,5.5867237]
[1745677031810,4.813,1790.1,1790.0,5.58659217]
[1745677033110,4.813,1790.1,1789.9,5.5867237]
[1745677033111,5.6454,1790.1,1789.8,11.1739621]
[1745677033420,5.6454,1790.1,1789.9,5.5868918]
[1745677033976,5.6454,1790.1,1789.8,5.58695759]
[1745677034478,3.0,1790.0,1789.4,0.7913]
[1745677034680,0.7688,1789.9,1789.5,5.58814353]
[1745677034907,0.7688,1789.9,1789.5,5.58793156]
[1745677035125,0.7688,1789.9,1789.6,5.58783249]
[1745677035512,0.7688,1789.9,1789.7,5.58736171]
[1745677035712,0.7688,1789.9,1789.6,5.58767637]
[1745677035889,0.7688,1789.9,1789.6,5.58761514]
[1745677036296,0.7688,1789.9,1789.5,5.58801963]
[1745677036621,0.7688,1789.9,1789.3,5.58859483]
[1745677036823,0.7688,1789.9,1789.2,5.58894201]
[1745677037026,10.39940914,1790.1,1789.1,6.43066485]
[1745677037027,0.7688,1789.8,1789.1,6.4305141]
[1745677037206,3.0,1789.6,1789.2,5.58885549]
[1745677038223,3.0,1789.6,1789.1,6.4305141]
[1745677038430,0.8029,1789.5,1789.2,5.58908439]
[1745677039424,0.8029,1789.5,1789.3,5.58875387]
[1745677040732,0.8029,1789.5,1789.2,5.58890384]
[1745677041026,0.8029,1789.5,1789.3,5.58877623]
[1745677041230,3.0,1789.6,1789.3,5.58877623]
[1745677041399,3.0,1789.6,1789.4,5.58844474]
[1745677042117,3.0,1789.6,1789.3,5.58859572]
[1745677043634,3.0,1789.6,1789.2,5.58894366]
[1745677044335,3.0,1789.6,1789.2,11.1778055]
[1745677044542,3.0,1789.6,1789.2,5.58886184]
[1745677044716,3.0,1789.6,1789.2,5.58883965]
[1745677044920,0.8119,1789.5,1789.1,0.05]
[1745677045103,0.8119,1789.5,1789.1,5.63923277]
[1745677045523,3.0,1789.6,1789.4,5.5884654]
[1745677045733,0.8119,1790.0,1789.3,6.27804813]
[1745677045938,4.813,1790.0,1789.8,5.58695587]
[1745677046131,0.6892704,1790.5,1790.1,5.58628009]
[1745677046132,4.813,1790.3,1790.1,5.58628009]
[1745677046410,4.813,1790.3,1790.2,5.58596804]
[1745677046959,4.813,1790.3,1790.1,5.58611627]
[1745677047545,4.813,1790.3,1790.2,5.58596804]
[1745677049305,4.812,1790.5,1790.2,5.58577586]
[1745677049549,4.812,1790.5,1790.3,5.58549586]
[1745677050454,4.812,1790.5,1790.2,5.58579356]
[1745677050957,4.812,1790.5,1790.2,11.17154434]
[1745677051159,4.812,1790.5,1790.1,5.58617167]
[1745677051472,4.812,1790.5,1790.2,11.17161652]
[1745677051641,4.812,1790.5,1790.3,5.58560182]
[1745677052047,4.812,1790.5,1790.2,5.58578419]
[1745677053526,4.812,1790.5,1790.1,6.14464645]
[1745677053866,4.812,1790.5,1790.2,5.58596419]
[1745677054462,4.812,1790.5,1790.3,5.58564907]
[1745677054825,4.812,1790.5,1790.0,5.58658514]
[1745677055027,4.812,1790.5,1790.3,5.58541603]
[1745677056563,4.812,1790.5,1790.4,5.58534405]
[1745677056762,4.812,1790.7,1790.2,6.41544658]
[1745677057069,4.812,1790.7,1790.5,5.58497485]
[1745677057367,4.812,1790.7,1790.4,5.58514955]
[1745677057564,4.812,1790.7,1790.2,6.41536481]
[1745677057771,3.8321,1790.6,1790.2,5.5859523]
[1745677058472,3.8321,1790.6,1790.0,6.41589444]
[1745677058679,0.8318,1790.5,1789.7,6.33803048]
[1745677058847,0.8318,1790.3,1789.6,5.58766411]
[1745677059048,3.8318,1790.1,1789.7,5.58730611]
[1745677059267,3.8318,1790.1,1789.8,5.5870572]
[1745677059464,3.8318,1790.1,1789.7,5.5873435]
[1745677060059,3.8318,1790.1,1789.8,5.58720853]
[1745677060683,3.8318,1790.1,1789.7,5.58727938]
[1745677060972,4.2422561,1790.1,1789.5,0.7507]
[1745677061173,0.8318,1790.0,1789.4,5.58819576]
[1745677061350,0.8318,1790.0,1789.4,6.22208534]
[1745677062176,0.8318,1790.0,1789.5,5.58812047]
[1745677062489,0.8318,1790.0,1789.3,5.58863865]
[1745677062974,0.8318,1789.8,1789.1,7.51283306]
[1745677063143,0.8061,1789.5,1789.1,6.76213306]
[1745677063338,0.8061,1789.5,1789.1,5.63924453]
[1745677063540,0.8061,1789.5,1789.1,5.63919865]
[1745677064479,0.8061,1789.5,1789.2,5.58905393]
[1745677067072,0.8061,1789.5,1789.3,5.58876696]
[1745677067272,0.8061,1789.5,1789.2,5.58896774]
[1745677068283,0.8061,1789.5,1789.1,5.63923232]
[1745677069451,0.8061,1789.5,1789.1,0.05]
[1745677069653,0.8089,1789.3,1789.1,0.05]
[1745677069952,7.813,1789.2,1789.1,0.05]
[1745677070355,4.813,1789.2,1789.1,5.63924331]
[1745677070578,4.813,1789.2,1789.1,0.05]
[1745677071162,4.813,1789.2,1789.1,5.63940249]
[1745677072282,4.813,1789.2,1789.1,0.05]
[1745677073859,4.813,1789.2,1789.1,5.63940249]
[1745677075055,8.613,1789.2,1789.1,0.05]
[1745677086217,7.813,1789.2,1789.1,0.05]
[1745677086521,4.813,1789.2,1789.1,0.05]
[1745677086675,7.813,1789.2,1789.1,0.05]
[1745677087103,4.813,1789.2,1789.1,5.63940249]
[1745677087426,4.813,1789.2,1789.1,6.76229435]
[1745677088144,0.8236,1789.6,1789.1,1.17289186]
[1745677088445,4.814,1789.6,1789.5,5.58815311]
[1745677089238,4.814,1789.6,1789.3,0.7911]
[1745677089393,4.814,1789.6,1789.3,6.37972112]
[1745677089812,4.814,1789.6,1789.3,0.7911]
[1745677090035,4.814,1789.6,1789.4,5.58841117]
[1745677090342,4.814,1789.6,1789.3,5.5886588]
[1745677090500,3.7715,1789.5,1789.1,0.8411]
[1745677090692,3.7715,1789.5,1789.1,6.43037162]
[1745677091035,3.7715,1789.5,1789.1,5.63918154]
[1745677091339,3.7715,1789.5,1789.2,5.58893192]
[1745677091495,3.7715,1789.5,1789.3,5.58875757]
[1745677092134,3.7715,1789.5,1789.2,5.58890262]
[1745677092497,3.0,1789.5,1789.3,5.58861162]
[1745677092794,3.0,1789.5,1789.4,5.5884654]
[1745677093650,3.0,1789.5,1789.3,5.58859364]
[1745677094130,3.0,1789.5,1789.2,5.5889713]
[1745677094336,3.0,1789.5,1789.1,5.639251]
[1745677094501,0.8313,1789.4,1789.1,5.639251]
[1745677095225,0.8313,1789.4,1789.1,11.22840883]
[1745677095428,0.8313,1789.4,1789.1,5.63915783]
[1745677096045,0.8313,1789.4,1789.2,5.58903394]
[1745677096350,3.0,1789.5,1789.3,5.58877773]
[1745677097000,3.0,1789.5,1789.3,5.58857013]
[1745677097431,3.0,1789.5,1789.3,5.58852797]
[1745677097706,3.0,1789.5,1789.4,5.5884654]
[1745677098453,7.814,1789.6,1789.5,5.58815311]
[1745677099644,7.814,1789.6,1789.4,5.5884654]
[1745677100217,7.814,1789.6,1789.3,6.36534052]
[1745677100421,7.814,1789.6,1789.4,5.58845604]
[1745677100620,7.814,1789.6,1789.3,11.17722022]
[1745677100946,7.814,1789.6,1789.3,11.1771188]
[1745677101245,7.814,1789.6,1789.4,5.58843878]
[1745677101421,7.814,1789.6,1789.5,5.58815311]
[1745677102107,7.814,1789.6,1789.3,5.58864173]
[1745677102339,7.814,1789.6,1789.3,5.5885935]
[1745677102506,7.814,1789.6,1789.3,5.58877773]
[1745677102706,7.814,1789.6,1789.4,5.58845137]
[1745677103748,7.814,1789.6,1789.5,5.58815311]
[1745677104117,7.814,1789.6,1789.4,5.58845137]
[1745677105251,7.814,1789.6,1789.5,5.58815311]
[1745677107865,4.814,1789.6,1789.5,6.78905356]
[1745677108462,4.814,1789.6,1789.5,7.61095356]
[1745677108653,21.598,1789.9,1789.8,5.58721644]
[1745677108819,4.813,1789.9,1789.8,6.40911644]
[1745677109155,7.813,1790.2,1790.1,5.5860148]
[1745677109461,4.813,1790.2,1790.0,5.58631657]
[1745677110256,4.813,1790.2,1790.0,5.58634648]
[1745677110459,4.813,1790.2,1790.1,5.58628009]
[1745677110626,5.6336,1790.2,1789.9,5.58679669]
[1745677111316,5.6336,1790.2,1790.0,5.5865453]
[1745677112362,7.813,1790.2,1790.1,5.58628009]
[1745677112923,7.813,1790.2,1790.0,5.58639546]
[1745677113223,7.813,1790.2,1790.1,5.58628009]
[1745677113866,4.813,1790.2,1790.1,6.1449081]
[1745677119869,7.812,1790.5,1790.4,5.58534405]
[1745677121334,7.812,1790.5,1790.3,11.1710883]
[1745677121681,7.812,1790.5,1790.4,5.58534405]
[1745677122702,7.812,1790.5,1790.4,6.36524405]
[1745677122908,7.812,1790.5,1790.4,7.56031521]
[1745677125444,4.812,1790.5,1790.4,7.56031521]
[1745677125607,5.5955,1790.5,1790.2,5.5857707]
[1745677125920,5.5955,1790.5,1790.3,5.58565184]
[1745677126216,5.5955,1790.5,1790.2,5.58571105]
[1745677127075,5.5955,1790.5,1790.1,0.55862801]
[1745677127312,5.5955,1790.5,1790.0,5.58642613]
[1745677128012,3.7835,1790.4,1789.9,5.58667505]
[1745677128501,3.7835,1790.4,1789.9,11.1734063]
[1745677128702,4.47318681,1790.4,1789.9,5.58666224]
[1745677129513,0.7835,1790.3,1789.9,5.58661364]
[1745677129903,0.7835,1790.3,1789.9,11.17332975]
[1745677130429,0.7835,1790.3,1789.9,5.58661364]
[1745677130634,0.7835,1790.3,1789.6,0.8093]
[1745677130783,0.7835,1790.1,1789.4,0.8093]
[1745677131110,0.7835,1789.9,1789.6,5.58770896]
[1745677131275,0.7835,1789.9,1789.6,5.58762944]
[1745677131818,0.7835,1789.9,1789.8,5.58721644]
[1745677131988,4.811,1790.0,1789.8,5.58721644]
[1745677132595,4.811,1790.0,1789.8,5.58699376]
[1745677132882,4.811,1790.0,1789.9,5.58690429]
[1745677134882,4.811,1790.0,1789.8,5.58709802]
[1745677135591,4.811,1790.0,1789.9,5.58690429]
[1745677136533,5.5852,1790.0,1789.7,11.17478791]
[1745677136685,5.5852,1790.0,1789.7,11.17467311]
[1745677136886,5.5852,1790.0,1789.7,5.58729713]
[1745677137618,5.5852,1790.0,1789.9,5.58690429]
[1745677137821,7.811,1790.0,1789.6,1.11756558]
[1745677137996,7.811,1790.0,1789.9,5.58690429]
[1745677140186,4.811,1790.0,1789.9,6.78097405]
[1745677140825,4.811,1790.0,1789.9,5.58690429]
[1745677141329,4.811,1790.0,1789.8,6.35361738]
[1745677141495,4.811,1790.0,1789.8,6.35358342]
[1745677141694,4.811,1790.0,1789.8,6.98894176]
[1745677142230,4.811,1790.0,1789.9,5.58690429]
[1745677146129,4.811,1790.0,1789.8,6.98906526]
[1745677146308,4.811,1790.0,1789.8,5.58710692]
[1745677146926,4.811,1790.0,1789.8,11.17410797]
[1745677147131,4.811,1790.0,1789.8,5.58700105]
[1745677147426,4.811,1790.0,1789.8,5.58697235]
[1745677147731,4.811,1790.0,1789.9,5.58690429]
[1745677148031,4.811,1790.0,1789.9,7.52589195]
[1745677148595,7.811,1790.3,1790.2,5.58596804]
[1745677149106,7.801,1790.3,1790.2,5.58596804]
[1745677149326,3.0,1790.2,1790.0,5.58640129]
[1745677149626,3.0,1790.2,1789.9,5.58670706]
[1745677150930,3.0,1790.2,1790.0,5.58657032]
[1745677151341,3.0,1790.2,1790.1,5.58628009]
[1745677151825,7.801,1790.3,1790.2,5.58596804]
[1745677152726,4.801,1790.3,1790.2,5.58596804]
[1745677153029,4.811,1790.6,1790.5,5.5848294]
[1745677153210,4.811,1790.6,1790.4,5.58518507]
[1745677153405,7.811,1790.6,1790.5,5.58503211]
[1745677153605,4.811,1790.6,1790.5,5.58503211]
[1745677153812,16.778,1790.8,1790.7,5.58440833]
[1745677154007,24.589,1790.8,1790.7,5.58440833]
[1745677154236,21.589,1790.8,1790.7,5.58440833]
[1745677154533,0.8047,1791.1,1790.6,5.5847202]
[1745677154717,4.811,1791.2,1791.0,5.58347292]
[1745677154935,4.0,1791.1,1791.0,5.58347292]
[1745677155522,4.811,1791.2,1791.1,5.58316118]
[1745677156010,7.811,1791.2,1790.9,5.58364974]
[1745677156216,7.811,1791.2,1791.0,5.58337571]
[1745677156440,7.811,1791.2,1790.9,5.5836566]
[1745677156837,7.811,1791.2,1791.0,5.58330405]
[1745677157151,7.811,1791.2,1791.1,5.58316118]
[1745677158334,4.811,1791.2,1791.1,5.58316118]
[1745677161047,4.811,1791.2,1791.1,6.34406118]
[1745677162473,3.0,1791.4,1791.3,5.58253782]
[1745677162653,0.05,1791.9,1791.2,6.27250933]
[1745677162968,3.0,1791.6,1791.5,5.58170998]
[1745677163117,3.0,1791.6,1791.4,5.5820446]
[1745677163428,3.0,1791.6,1791.4,5.58200901]
[1745677163624,3.0,1791.6,1791.5,5.58191459]
[1745677164035,3.0,1791.6,1791.4,5.5820328]
[1745677164240,3.0,1791.6,1791.3,6.34329482]
[1745677164447,3.0,1791.6,1791.4,5.58219488]
[1745677164846,3.0,1791.6,1791.5,5.58191459]
[1745677165061,3.0,1791.6,1791.4,5.58204589]
[1745677165444,3.0,1791.6,1791.3,6.34332256]
[1745677165760,3.0,1791.6,1791.3,7.53592645]
[1745677165923,3.0,1791.6,1791.1,7.5925194]
[1745677166125,0.8076,1791.5,1791.2,5.58281812]
[1745677166839,0.8076,1791.4,1790.7,0.8167]
[1745677167040,3.8076,1791.2,1790.5,5.58503211]
[1745677167266,0.68968681,1791.1,1790.5,5.58503211]
[1745677167475,0.8076,1791.0,1790.3,6.40215555]
[1745677167669,4.808,1790.9,1790.3,7.7816489]
[1745677167872,3.0,1790.8,1790.3,0.8167]
[1745677168072,0.8076,1790.7,1790.1,0.8167]
[1745677168385,1.49728681,1790.7,1790.0,5.5864544]
[1745677168539,1.49728681,1790.7,1790.0,11.1727926]
[1745677168739,1.49728681,1790.7,1790.1,5.58626392]
[1745677168977,1.92201549,1790.7,1790.1,5.58626392]
[1745677169349,2.3358135,1790.7,1790.1,5.58626392]
[1745677170171,2.3358135,1790.7,1790.1,5.58601541]
[1745677170343,1.64612669,1790.7,1790.1,5.58601541]
[1745677170576,0.7826,1790.7,1790.4,5.5853035]
[1745677170783,0.7826,1790.7,1790.3,6.39868031]
[1745677171720,0.7826,1790.7,1790.1,11.98538374]
[1745677172619,0.7826,1790.7,1790.1,6.39929187]
[1745677172829,0.7826,1790.7,1790.0,5.58630134]
[1745677172977,0.7826,1790.7,1790.1,5.58623317]
[1745677173487,0.7826,1790.7,1790.1,11.1722603]
[1745677173807,0.7826,1790.7,1790.3,5.58552544]
[1745677174510,0.7826,1790.7,1790.4,5.58533507]
[1745677174713,0.7826,1790.7,1790.4,11.1705032]
[1745677174922,0.7826,1790.7,1790.5,5.58500882]
[1745677175102,0.7826,1790.7,1790.4,5.58516998]
[1745677177192,0.7826,1790.7,1790.4,5.58511011]
[1745677177618,0.7826,1790.7,1790.3,0.8275]
[1745677177777,0.7826,1790.7,1790.6,5.5847202]
[1745677177978,0.7826,1790.7,1790.5,5.58483487]
[1745677180217,3.0,1790.8,1790.6,5.5847202]
[1745677180618,3.0,1790.8,1790.7,5.58440833]
[1745677181123,4.808,1790.9,1790.8,5.58409649]
[1745677181296,7.808,1790.9,1790.7,6.38159559]
[1745677181620,7.808,1790.9,1790.7,11.16847622]
[1745677181842,7.808,1790.9,1790.8,5.58409649]
[1745677182391,4.808,1790.9,1790.8,5.58409649]
[1745677182588,4.808,1790.9,1790.8,6.7009242]
[1745677182786,4.808,1790.9,1790.8,7.4982242]
[1745677182991,4.809,1791.2,1791.1,5.58308759]
[1745677183412,4.809,1791.2,1791.0,5.58322337]
[1745677184125,4.809,1791.2,1791.0,11.16646676]
[1745677184326,4.809,1791.2,1791.1,5.58316118]
[1745677185022,4.809,1791.2,1791.0,5.58326638]
[1745677185930,4.809,1791.2,1791.0,11.16649546]
[1745677186630,4.809,1791.2,1791.1,5.58316118]
[1745677188836,4.809,1791.2,1791.0,5.58327988]
[1745677189799,4.809,1791.2,1791.0,5.58325439]
[1745677189998,4.809,1791.2,1791.1,5.58316118]
[1745677191637,4.809,1791.2,1791.0,5.58327726]
[1745677193754,5.5883,1791.2,1790.9,5.58377568]
[1745677194244,6.14713,1791.2,1790.9,5.58357457]
[1745677194421,6.14713,1791.2,1790.9,11.16732358]
[1745677195157,6.14713,1791.2,1790.9,5.5835389]
[1745677195453,6.14713,1791.2,1791.0,5.58326832]
[1745677195655,5.5883,1791.2,1791.0,5.58326832]
[1745677198029,4.809,1791.2,1791.0,5.58324508]
[1745677198853,4.809,1791.2,1791.1,5.58316118]
[1745677199353,4.809,1791.2,1791.0,5.58332811]
[1745677200563,4.50858681,1791.1,1790.4,0.7811]
[1745677200750,0.8189,1791.0,1790.3,5.58551568]
[1745677201072,0.8189,1790.8,1790.3,5.58538283]
[1745677201380,4.808,1790.7,1790.4,5.58518702]
[1745677201528,4.808,1790.7,1790.5,5.58490772]
[1745677202970,4.808,1790.7,1790.6,6.3391202]
[1745677203142,9.09,1791.1,1790.9,5.58361545]
[1745677203330,4.808,1791.2,1791.0,5.58347292]
[1745677203533,4.808,1791.2,1790.9,5.58359413]
[1745677204267,4.808,1791.2,1790.6,6.33895501]
[1745677204268,5.66586,1791.2,1790.6,6.33895501]
[1745677204469,4.808,1791.2,1790.8,5.58406185]
[1745677204775,0.7972,1791.0,1790.4,1.44978681]
[1745677204936,0.7972,1791.0,1790.5,5.5848027]
[1745677205267,0.7972,1790.9,1790.3,5.58553873]
[1745677205467,3.0,1790.7,1790.4,5.58529167]
[1745677205635,0.7972,1790.6,1790.1,11.17212479]
[1745677205963,0.7972,1790.6,1790.1,5.58604761]
[1745677206161,0.7972,1790.6,1790.4,5.58533204]
[1745677206362,0.7972,1790.6,1790.3,5.5854881]
[1745677206871,0.7972,1790.6,1790.1,5.58609177]
[1745677207066,1.17692,1790.6,1790.2,5.5859371]
[1745677207667,1.17692,1790.6,1790.1,5.58608787]
[1745677207964,1.17692,1790.6,1790.2,5.5857553]
[1745677208180,1.17692,1790.6,1790.3,5.58563481]
[1745677209649,1.17692,1790.6,1790.2,11.17155811]
[1745677209854,1.17692,1790.6,1790.2,5.58576773]
[1745677210154,1.17692,1790.6,1790.3,5.58565507]
[1745677211257,1.17692,1790.6,1790.2,5.58577029]
[1745677212051,1.17692,1790.6,1790.2,11.17156411]
[1745677212261,1.17692,1790.6,1790.3,5.58558973]
[1745677212467,1.17692,1790.6,1790.2,5.58578935]
[1745677212788,1.17692,1790.6,1790.1,5.58611704]
[1745677213485,1.17692,1790.6,1790.2,5.58595226]
[1745677215275,1.17692,1790.6,1789.7,5.58727947]
[1745677215276,0.7922,1790.4,1789.7,5.58727947]
[1745677215595,0.7922,1790.1,1789.9,5.58688444]
[1745677216912,3.7922,1790.2,1789.7,0.63671795]
[1745677217049,3.0,1790.2,1790.1,5.58628009]
[1745677217883,3.0,1790.2,1790.0,5.58639294]
[1745677218102,3.0,1790.2,1789.8,0.7799]
[1745677218389,3.0,1790.2,1789.9,5.58670914]
[1745677219071,3.0,1790.2,1789.9,5.58666192]
[1745677219284,0.7922,1790.1,1789.9,5.58666192]
[1745677219699,0.7922,1790.1,1789.8,5.58713797]
[1745677220191,0.7922,1790.1,1789.9,5.58689712]
[1745677221192,3.0,1790.2,1789.9,5.58666363]
[1745677221414,3.0,1790.2,1790.0,5.58659217]
[1745677222954,3.0,1790.2,1790.1,5.58628009]
[1745677223804,4.809,1790.3,1790.2,5.58596804]
[1745677224311,4.809,1790.4,1790.3,5.58557424]
[1745677224820,4.809,1790.4,1790.2,6.41479605]
[1745677224972,4.809,1790.4,1790.1,5.58604259]
[1745677225488,5.6119,1790.4,1790.1,5.58604259]
[1745677226004,6.17309,1790.4,1790.1,5.58626394]
[1745677227406,6.17309,1790.4,1790.0,5.58642028]
[1745677227620,6.17309,1790.4,1789.8,6.41601928]
[1745677227916,3.0,1790.3,1789.9,5.58672694]
[1745677228615,3.0,1790.3,1789.8,6.4160214]
[1745677228817,0.8167,1790.1,1789.8,5.5870214]